Workbook

Sheet Лист1
A1: Район | B1: Поселение | C1: Адрес | D1: S общая жилая+нежилая | E1: S общ. Здания | F1: S подвала | G1: S кровли | H1: Вид кровли | I1: S фасада | J1: V Здания | K1: ИТП | L1: Столбец1 | M1: тепло | N1: хвс | O1: гвс | P1: Этажность | Q1: Высота этажа | R1: Кол-во лифтов | S1: Дата размещения предложения | T1: Дата расчета акта | U1: Антены | V1: 2021-02-04
A2: Андреапольский район | B2: Андреапольское сельское поселение | C2: д. Чистая речка, д. 27 | D2: 4,112.60 | J2: =Таблица1[[#This Row],[S общ. Здания]]*Таблица1[[#This Row],[Высота этажа]] -> 0.00 | M2: 1.00 | N2: 1.00 | O2: 1.00 | Q2: 3.00
A3: Андреапольский район | B3: Андреапольское сельское поселение | C3: д. Чистая речка, д. 28 | J3: =Таблица1[[#This Row],[S общ. Здания]]*Таблица1[[#This Row],[Высота этажа]] -> 0.00 | M3: 1.00 | N3: 1.00 | O3: 1.00 | Q3: 3.00
A4: Андреапольский район | B4: Андреапольское сельское поселение | C4: д. Чистая речка, д. 29 | J4: =Таблица1[[#This Row],[S общ. Здания]]*Таблица1[[#This Row],[Высота этажа]] -> 0.00 | M4: 1.00 | N4: 1.00 | O4: 1.00 | Q4: 3.00
A5: Андреапольский район | B5: Андреапольское сельское поселение | C5: п. Костюшино, ул. Лесная, д. 4 | J5: =Таблица1[[#This Row],[S общ. Здания]]*Таблица1[[#This Row],[Высота этажа]] -> 0.00 | M5: 1.00 | N5: 1.00 | O5: 1.00 | Q5: 3.00
A6: Андреапольский район | B6: Андреапольское сельское поселение | C6: п. Костюшино, ул. Лесная, д. 6 | J6: =Таблица1[[#This Row],[S общ. Здания]]*Таблица1[[#This Row],[Высота этажа]] -> 0.00 | M6: 1.00 | N6: 1.00 | O6: 1.00 | Q6: 3.00
A7: Андреапольский район | B7: городское поселение город Андреаполь | C7: г. Андреаполь, пл. Гвардейская, д. 1 | J7: =Таблица1[[#This Row],[S общ. Здания]]*Таблица1[[#This Row],[Высота этажа]] -> 0.00 | M7: 1.00 | N7: 1.00 | O7: 1.00 | Q7: 3.00
A8: Андреапольский район | B8: городское поселение город Андреаполь | C8: г. Андреаполь, пл. Гвардейская, д. 10 | J8: =Таблица1[[#This Row],[S общ. Здания]]*Таблица1[[#This Row],[Высота этажа]] -> 0.00 | M8: 1.00 | N8: 1.00 | O8: 1.00 | Q8: 3.00
A9: Андреапольский район | B9: городское поселение город Андреаполь | C9: г. Андреаполь, пл. Гвардейская, д. 2 | J9: =Таблица1[[#This Row],[S общ. Здания]]*Таблица1[[#This Row],[Высота этажа]] -> 0.00 | M9: 1.00 | N9: 1.00 | O9: 1.00 | Q9: 3.00
A10: Андреапольский район | B10: городское поселение город Андреаполь | C10: г. Андреаполь, пл. Гвардейская, д. 3 | J10: =Таблица1[[#This Row],[S общ. Здания]]*Таблица1[[#This Row],[Высота этажа]] -> 0.00 | M10: 1.00 | N10: 1.00 | O10: 1.00 | Q10: 3.00
A11: Андреапольский район | B11: городское поселение город Андреаполь | C11: г. Андреаполь, пл. Гвардейская, д. 5 | J11: =Таблица1[[#This Row],[S общ. Здания]]*Таблица1[[#This Row],[Высота этажа]] -> 0.00 | M11: 1.00 | N11: 1.00 | O11: 1.00 | Q11: 3.00
A12: Андреапольский район | B12: городское поселение город Андреаполь | C12: г. Андреаполь, пл. Гвардейская, д. 6 | J12: =Таблица1[[#This Row],[S общ. Здания]]*Таблица1[[#This Row],[Высота этажа]] -> 0.00 | M12: 1.00 | N12: 1.00 | O12: 1.00 | Q12: 3.00
A13: Андреапольский район | B13: городское поселение город Андреаполь | C13: г. Андреаполь, пл. Гвардейская, д. 7 | J13: =Таблица1[[#This Row],[S общ. Здания]]*Таблица1[[#This Row],[Высота этажа]] -> 0.00 | M13: 1.00 | N13: 1.00 | O13: 1.00 | Q13: 3.00
A14: Андреапольский район | B14: городское поселение город Андреаполь | C14: г. Андреаполь, пл. Гвардейская, д. 8 | J14: =Таблица1[[#This Row],[S общ. Здания]]*Таблица1[[#This Row],[Высота этажа]] -> 0.00 | M14: 1.00 | N14: 1.00 | O14: 1.00 | Q14: 3.00
A15: Андреапольский район | B15: городское поселение город Андреаполь | C15: г. Андреаполь, пл. Гвардейская, д. 9 | G15: 562.00 | H15: п | I15: 760.00 | J15: =Таблица1[[#This Row],[S общ. Здания]]*Таблица1[[#This Row],[Высота этажа]] -> 0.00 | M15: 1.00 | N15: 1.00 | O15: 1.00 | P15: 5.00 | Q15: 3.00
A16: Андреапольский район | B16: городское поселение город Андреаполь | C16: г. Андреаполь, ул. 50 лет Октября, д. 31 | J16: =Таблица1[[#This Row],[S общ. Здания]]*Таблица1[[#This Row],[Высота этажа]] -> 0.00 | M16: 1.00 | N16: 1.00 | O16: 1.00 | Q16: 3.00
A17: Андреапольский район | B17: городское поселение город Андреаполь | C17: г. Андреаполь, ул. 50 лет Октября, д. 31а | J17: =Таблица1[[#This Row],[S общ. Здания]]*Таблица1[[#This Row],[Высота этажа]] -> 0.00 | M17: 1.00 | N17: 1.00 | O17: 1.00 | Q17: 3.00
A18: Андреапольский район | B18: городское поселение город Андреаполь | C18: г. Андреаполь, ул. 50 лет Октября, д. 7 | J18: =Таблица1[[#This Row],[S общ. Здания]]*Таблица1[[#This Row],[Высота этажа]] -> 0.00 | M18: 1.00 | N18: 1.00 | O18: 1.00 | Q18: 3.00
A19: Андреапольский район | B19: городское поселение город Андреаполь | C19: г. Андреаполь, ул. Авиаторов, д. 1 | J19: =Таблица1[[#This Row],[S общ. Здания]]*Таблица1[[#This Row],[Высота этажа]] -> 0.00 | M19: 1.00 | N19: 1.00 | O19: 1.00 | Q19: 3.00
A20: Андреапольский район | B20: городское поселение город Андреаполь | C20: г. Андреаполь, ул. Авиаторов, д. 10 | J20: =Таблица1[[#This Row],[S общ. Здания]]*Таблица1[[#This Row],[Высота этажа]] -> 0.00 | M20: 1.00 | N20: 1.00 | O20: 1.00 | Q20: 3.00
A21: Андреапольский район | B21: городское поселение город Андреаполь | C21: г. Андреаполь, ул. Авиаторов, д. 11 | J21: =Таблица1[[#This Row],[S общ. Здания]]*Таблица1[[#This Row],[Высота этажа]] -> 0.00 | M21: 1.00 | N21: 1.00 | O21: 1.00 | Q21: 3.00
A22: Андреапольский район | B22: городское поселение город Андреаполь | C22: г. Андреаполь, ул. Авиаторов, д. 12 | J22: =Таблица1[[#This Row],[S общ. Здания]]*Таблица1[[#This Row],[Высота этажа]] -> 0.00 | M22: 1.00 | N22: 1.00 | O22: 1.00 | Q22: 3.00
A23: Андреапольский район | B23: городское поселение город Андреаполь | C23: г. Андреаполь, ул. Авиаторов, д. 13 | J23: =Таблица1[[#This Row],[S общ. Здания]]*Таблица1[[#This Row],[Высота этажа]] -> 0.00 | M23: 1.00 | N23: 1.00 | O23: 1.00 | Q23: 3.00
A24: Андреапольский район | B24: городское поселение город Андреаполь | C24: г. Андреаполь, ул. Авиаторов, д. 14 | J24: =Таблица1[[#This Row],[S общ. Здания]]*Таблица1[[#This Row],[Высота этажа]] -> 0.00 | M24: 1.00 | N24: 1.00 | O24: 1.00 | Q24: 3.00
A25: Андреапольский район | B25: городское поселение город Андреаполь | C25: г. Андреаполь, ул. Авиаторов, д. 15 | J25: =Таблица1[[#This Row],[S общ. Здания]]*Таблица1[[#This Row],[Высота этажа]] -> 0.00 | M25: 1.00 | N25: 1.00 | O25: 1.00 | Q25: 3.00
A26: Андреапольский район | B26: городское поселение город Андреаполь | C26: г. Андреаполь, ул. Авиаторов, д. 16 | J26: =Таблица1[[#This Row],[S общ. Здания]]*Таблица1[[#This Row],[Высота этажа]] -> 0.00 | M26: 1.00 | N26: 1.00 | O26: 1.00 | Q26: 3.00
A27: Андреапольский район | B27: городское поселение город Андреаполь | C27: г. Андреаполь, ул. Авиаторов, д. 17 | J27: =Таблица1[[#This Row],[S общ. Здания]]*Таблица1[[#This Row],[Высота этажа]] -> 0.00 | M27: 1.00 | N27: 1.00 | O27: 1.00 | Q27: 3.00
A28: Андреапольский район | B28: городское поселение город Андреаполь | C28: г. Андреаполь, ул. Авиаторов, д. 18 | J28: =Таблица1[[#This Row],[S общ. Здания]]*Таблица1[[#This Row],[Высота этажа]] -> 0.00 | M28: 1.00 | N28: 1.00 | O28: 1.00 | Q28: 3.00
A29: Андреапольский район | B29: городское поселение город Андреаполь | C29: г. Андреаполь, ул. Авиаторов, д. 19 | J29: =Таблица1[[#This Row],[S общ. Здания]]*Таблица1[[#This Row],[Высота этажа]] -> 0.00 | M29: 1.00 | N29: 1.00 | O29: 1.00 | Q29: 3.00
A30: Андреапольский район | B30: городское поселение город Андреаполь | C30: г. Андреаполь, ул. Авиаторов, д. 2 | J30: =Таблица1[[#This Row],[S общ. Здания]]*Таблица1[[#This Row],[Высота этажа]] -> 0.00 | M30: 1.00 | N30: 1.00 | O30: 1.00 | Q30: 3.00
A31: Андреапольский район | B31: городское поселение город Андреаполь | C31: г. Андреаполь, ул. Авиаторов, д. 20 | J31: =Таблица1[[#This Row],[S общ. Здания]]*Таблица1[[#This Row],[Высота этажа]] -> 0.00 | M31: 1.00 | N31: 1.00 | O31: 1.00 | Q31: 3.00
A32: Андреапольский район | B32: городское поселение город Андреаполь | C32: г. Андреаполь, ул. Авиаторов, д. 21 | J32: =Таблица1[[#This Row],[S общ. Здания]]*Таблица1[[#This Row],[Высота этажа]] -> 0.00 | M32: 1.00 | N32: 1.00 | O32: 1.00 | Q32: 3.00
A33: Андреапольский район | B33: городское поселение город Андреаполь | C33: г. Андреаполь, ул. Авиаторов, д. 22 | J33: =Таблица1[[#This Row],[S общ. Здания]]*Таблица1[[#This Row],[Высота этажа]] -> 0.00 | M33: 1.00 | N33: 1.00 | O33: 1.00 | Q33: 3.00
A34: Андреапольский район | B34: городское поселение город Андреаполь | C34: г. Андреаполь, ул. Авиаторов, д. 23 | J34: =Таблица1[[#This Row],[S общ. Здания]]*Таблица1[[#This Row],[Высота этажа]] -> 0.00 | M34: 1.00 | N34: 1.00 | O34: 1.00 | Q34: 3.00
A35: Андреапольский район | B35: городское поселение город Андреаполь | C35: г. Андреаполь, ул. Авиаторов, д. 24 | J35: =Таблица1[[#This Row],[S общ. Здания]]*Таблица1[[#This Row],[Высота этажа]] -> 0.00 | M35: 1.00 | N35: 1.00 | O35: 1.00 | Q35: 3.00
A36: Андреапольский район | B36: городское поселение город Андреаполь | C36: г. Андреаполь, ул. Авиаторов, д. 25 | J36: =Таблица1[[#This Row],[S общ. Здания]]*Таблица1[[#This Row],[Высота этажа]] -> 0.00 | M36: 1.00 | N36: 1.00 | O36: 1.00 | Q36: 3.00
A37: Андреапольский район | B37: городское поселение город Андреаполь | C37: г. Андреаполь, ул. Авиаторов, д. 26 | J37: =Таблица1[[#This Row],[S общ. Здания]]*Таблица1[[#This Row],[Высота этажа]] -> 0.00 | M37: 1.00 | N37: 1.00 | O37: 1.00 | Q37: 3.00
A38: Андреапольский район | B38: городское поселение город Андреаполь | C38: г. Андреаполь, ул. Авиаторов, д. 27 | J38: =Таблица1[[#This Row],[S общ. Здания]]*Таблица1[[#This Row],[Высота этажа]] -> 0.00 | M38: 1.00 | N38: 1.00 | O38: 1.00 | Q38: 3.00
A39: Андреапольский район | B39: городское поселение город Андреаполь | C39: г. Андреаполь, ул. Авиаторов, д. 28 | J39: =Таблица1[[#This Row],[S общ. Здания]]*Таблица1[[#This Row],[Высота этажа]] -> 0.00 | M39: 1.00 | N39: 1.00 | O39: 1.00 | Q39: 3.00
A40: Андреапольский район | B40: городское поселение город Андреаполь | C40: г. Андреаполь, ул. Авиаторов, д. 29 | J40: =Таблица1[[#This Row],[S общ. Здания]]*Таблица1[[#This Row],[Высота этажа]] -> 0.00 | M40: 1.00 | N40: 1.00 | O40: 1.00 | Q40: 3.00
A41: Андреапольский район | B41: городское поселение город Андреаполь | C41: г. Андреаполь, ул. Авиаторов, д. 3 | J41: =Таблица1[[#This Row],[S общ. Здания]]*Таблица1[[#This Row],[Высота этажа]] -> 0.00 | M41: 1.00 | N41: 1.00 | O41: 1.00 | Q41: 3.00
A42: Андреапольский район | B42: городское поселение город Андреаполь | C42: г. Андреаполь, ул. Авиаторов, д. 30 | J42: =Таблица1[[#This Row],[S общ. Здания]]*Таблица1[[#This Row],[Высота этажа]] -> 0.00 | M42: 1.00 | N42: 1.00 | O42: 1.00 | Q42: 3.00
A43: Андреапольский район | B43: городское поселение город Андреаполь | C43: г. Андреаполь, ул. Авиаторов, д. 31 | J43: =Таблица1[[#This Row],[S общ. Здания]]*Таблица1[[#This Row],[Высота этажа]] -> 0.00 | M43: 1.00 | N43: 1.00 | O43: 1.00 | Q43: 3.00
A44: Андреапольский район | B44: городское поселение город Андреаполь | C44: г. Андреаполь, ул. Авиаторов, д. 4 | J44: =Таблица1[[#This Row],[S общ. Здания]]*Таблица1[[#This Row],[Высота этажа]] -> 0.00 | M44: 1.00 | N44: 1.00 | O44: 1.00 | Q44: 3.00
A45: Андреапольский район | B45: городское поселение город Андреаполь | C45: г. Андреаполь, ул. Авиаторов, д. 5 | J45: =Таблица1[[#This Row],[S общ. Здания]]*Таблица1[[#This Row],[Высота этажа]] -> 0.00 | M45: 1.00 | N45: 1.00 | O45: 1.00 | Q45: 3.00
A46: Андреапольский район | B46: городское поселение город Андреаполь | C46: г. Андреаполь, ул. Авиаторов, д. 6 | J46: =Таблица1[[#This Row],[S общ. Здания]]*Таблица1[[#This Row],[Высота этажа]] -> 0.00 | M46: 1.00 | N46: 1.00 | O46: 1.00 | Q46: 3.00
A47: Андреапольский район | B47: городское поселение город Андреаполь | C47: г. Андреаполь, ул. Авиаторов, д. 7 | J47: =Таблица1[[#This Row],[S общ. Здания]]*Таблица1[[#This Row],[Высота этажа]] -> 0.00 | M47: 1.00 | N47: 1.00 | O47: 1.00 | Q47: 3.00
A48: Андреапольский район | B48: городское поселение город Андреаполь | C48: г. Андреаполь, ул. Авиаторов, д. 8 | J48: =Таблица1[[#This Row],[S общ. Здания]]*Таблица1[[#This Row],[Высота этажа]] -> 0.00 | M48: 1.00 | N48: 1.00 | O48: 1.00 | Q48: 3.00
A49: Андреапольский район | B49: городское поселение город Андреаполь | C49: г. Андреаполь, ул. Авиаторов, д. 9 | J49: =Таблица1[[#This Row],[S общ. Здания]]*Таблица1[[#This Row],[Высота этажа]] -> 0.00 | M49: 1.00 | N49: 1.00 | O49: 1.00 | Q49: 3.00
A50: Андреапольский район | B50: городское поселение город Андреаполь | C50: г. Андреаполь, ул. Гагарина, д. 15 | J50: =Таблица1[[#This Row],[S общ. Здания]]*Таблица1[[#This Row],[Высота этажа]] -> 0.00 | M50: 1.00 | N50: 1.00 | O50: 1.00 | Q50: 3.00
A51: Андреапольский район | B51: городское поселение город Андреаполь | C51: г. Андреаполь, ул. Гагарина, д. 17 | I51: 352.00 | J51: =Таблица1[[#This Row],[S общ. Здания]]*Таблица1[[#This Row],[Высота этажа]] -> 0.00 | M51: 1.00 | N51: 1.00 | O51: 1.00 | P51: 2.00 | Q51: 3.00
A52: Андреапольский район | B52: городское поселение город Андреаполь | C52: г. Андреаполь, ул. Гагарина, д. 19 | J52: =Таблица1[[#This Row],[S общ. Здания]]*Таблица1[[#This Row],[Высота этажа]] -> 0.00 | M52: 1.00 | N52: 1.00 | O52: 1.00 | Q52: 3.00
A53: Андреапольский район | B53: городское поселение город Андреаполь | C53: г. Андреаполь, ул. Гагарина, д. 19а | J53: =Таблица1[[#This Row],[S общ. Здания]]*Таблица1[[#This Row],[Высота этажа]] -> 0.00 | M53: 1.00 | N53: 1.00 | O53: 1.00 | Q53: 3.00
A54: Андреапольский район | B54: городское поселение город Андреаполь | C54: г. Андреаполь, ул. Гагарина, д. 21 | J54: =Таблица1[[#This Row],[S общ. Здания]]*Таблица1[[#This Row],[Высота этажа]] -> 0.00 | M54: 1.00 | N54: 1.00 | O54: 1.00 | Q54: 3.00
A55: Андреапольский район | B55: городское поселение город Андреаполь | C55: г. Андреаполь, ул. Гагарина, д. 5 | J55: =Таблица1[[#This Row],[S общ. Здания]]*Таблица1[[#This Row],[Высота этажа]] -> 0.00 | M55: 1.00 | N55: 1.00 | O55: 1.00 | Q55: 3.00
A56: Андреапольский район | B56: городское поселение город Андреаполь | C56: г. Андреаполь, ул. Гагарина, д. 6 | J56: =Таблица1[[#This Row],[S общ. Здания]]*Таблица1[[#This Row],[Высота этажа]] -> 0.00 | M56: 1.00 | N56: 1.00 | O56: 1.00 | Q56: 3.00
A57: Андреапольский район | B57: городское поселение город Андреаполь | C57: г. Андреаполь, ул. Гагарина, д. 8 | J57: =Таблица1[[#This Row],[S общ. Здания]]*Таблица1[[#This Row],[Высота этажа]] -> 0.00 | M57: 1.00 | N57: 1.00 | O57: 1.00 | Q57: 3.00
A58: Андреапольский район | B58: городское поселение город Андреаполь | C58: г. Андреаполь, ул. Гагарина, д. 9 | J58: =Таблица1[[#This Row],[S общ. Здания]]*Таблица1[[#This Row],[Высота этажа]] -> 0.00 | M58: 1.00 | N58: 1.00 | O58: 1.00 | Q58: 3.00
A59: Андреапольский район | B59: городское поселение город Андреаполь | C59: г. Андреаполь, ул. Карла Маркса, д. 3 | J59: =Таблица1[[#This Row],[S общ. Здания]]*Таблица1[[#This Row],[Высота этажа]] -> 0.00 | M59: 1.00 | N59: 1.00 | O59: 1.00 | Q59: 3.00
A60: Андреапольский район | B60: городское поселение город Андреаполь | C60: г. Андреаполь, ул. Карла Маркса, д. 8 | J60: =Таблица1[[#This Row],[S общ. Здания]]*Таблица1[[#This Row],[Высота этажа]] -> 0.00 | M60: 1.00 | N60: 1.00 | O60: 1.00 | Q60: 3.00
A61: Андреапольский район | B61: городское поселение город Андреаполь | C61: г. Андреаполь, ул. Кленовая, д. 1 | J61: =Таблица1[[#This Row],[S общ. Здания]]*Таблица1[[#This Row],[Высота этажа]] -> 0.00 | M61: 1.00 | N61: 1.00 | O61: 1.00 | Q61: 3.00
A62: Андреапольский район | B62: городское поселение город Андреаполь | C62: г. Андреаполь, ул. Кленовая, д. 14 | J62: =Таблица1[[#This Row],[S общ. Здания]]*Таблица1[[#This Row],[Высота этажа]] -> 0.00 | M62: 1.00 | N62: 1.00 | O62: 1.00 | Q62: 3.00
A63: Андреапольский район | B63: городское поселение город Андреаполь | C63: г. Андреаполь, ул. Кленовая, д. 15 | J63: =Таблица1[[#This Row],[S общ. Здания]]*Таблица1[[#This Row],[Высота этажа]] -> 0.00 | M63: 1.00 | N63: 1.00 | O63: 1.00 | Q63: 3.00
A64: Андреапольский район | B64: городское поселение город Андреаполь | C64: г. Андреаполь, ул. Кленовая, д. 16 | J64: =Таблица1[[#This Row],[S общ. Здания]]*Таблица1[[#This Row],[Высота этажа]] -> 0.00 | M64: 1.00 | N64: 1.00 | O64: 1.00 | Q64: 3.00
A65: Андреапольский район | B65: городское поселение город Андреаполь | C65: г. Андреаполь, ул. Кленовая, д. 17 | J65: =Таблица1[[#This Row],[S общ. Здания]]*Таблица1[[#This Row],[Высота этажа]] -> 0.00 | M65: 1.00 | N65: 1.00 | O65: 1.00 | Q65: 3.00
A66: Андреапольский район | B66: городское поселение город Андреаполь | C66: г. Андреаполь, ул. Кленовая, д. 17а | J66: =Таблица1[[#This Row],[S общ. Здания]]*Таблица1[[#This Row],[Высота этажа]] -> 0.00 | M66: 1.00 | N66: 1.00 | O66: 1.00 | Q66: 3.00
A67: Андреапольский район | B67: городское поселение город Андреаполь | C67: г. Андреаполь, ул. Кленовая, д. 17б | J67: =Таблица1[[#This Row],[S общ. Здания]]*Таблица1[[#This Row],[Высота этажа]] -> 0.00 | M67: 1.00 | N67: 1.00 | O67: 1.00 | Q67: 3.00
A68: Андреапольский район | B68: городское поселение город Андреаполь | C68: г. Андреаполь, ул. Кленовая, д. 18 | D68: 919.80 | E68: 919.80 | G68: 580.00 | H68: с | I68: 514.00 | J68: =Таблица1[[#This Row],[S общ. Здания]]*Таблица1[[#This Row],[Высота этажа]] -> 2,759.40 | P68: 2.00 | Q68: 3.00 | S68: 2020-11-24 | T68: 2019-10-08
A69: Андреапольский район | B69: городское поселение город Андреаполь | C69: г. Андреаполь, ул. Кленовая, д. 19 | J69: =Таблица1[[#This Row],[S общ. Здания]]*Таблица1[[#This Row],[Высота этажа]] -> 0.00 | M69: 1.00 | N69: 1.00 | O69: 1.00 | Q69: 3.00
A70: Андреапольский район | B70: городское поселение город Андреаполь | C70: г. Андреаполь, ул. Кленовая, д. 19а | D70: 1,440.40 | E70: 1,440.40 | F70: 590.00 | G70: 944.00 | H70: с | I70: 594.00 | J70: =Таблица1[[#This Row],[S общ. Здания]]*Таблица1[[#This Row],[Высота этажа]] -> 4,321.20 | P70: 2.00 | Q70: 3.00 | S70: 2020-11-24 | T70: 2019-10-08
A71: Андреапольский район | B71: городское поселение город Андреаполь | C71: г. Андреаполь, ул. Кленовая, д. 19б | D71: 1,370.20 | E71: 1,370.20 | F71: 468.80 | G71: 750.00 | H71: с | I71: 594.00 | J71: =Таблица1[[#This Row],[S общ. Здания]]*Таблица1[[#This Row],[Высота этажа]] -> 4,110.60 | M71: 1.00 | N71: 1.00 | P71: 2.00 | Q71: 3.00 | S71: 2020-11-24 | T71: 2019-10-08
A72: Андреапольский район | B72: городское поселение город Андреаполь | C72: г. Андреаполь, ул. Кленовая, д. 2 | J72: =Таблица1[[#This Row],[S общ. Здания]]*Таблица1[[#This Row],[Высота этажа]] -> 0.00 | M72: 1.00 | N72: 1.00 | O72: 1.00 | Q72: 3.00
A73: Андреапольский район | B73: городское поселение город Андреаполь | C73: г. Андреаполь, ул. Кленовая, д. 21 | J73: =Таблица1[[#This Row],[S общ. Здания]]*Таблица1[[#This Row],[Высота этажа]] -> 0.00 | M73: 1.00 | N73: 1.00 | O73: 1.00 | Q73: 3.00
A74: Андреапольский район | B74: городское поселение город Андреаполь | C74: г. Андреаполь, ул. Кленовая, д. 21А | J74: =Таблица1[[#This Row],[S общ. Здания]]*Таблица1[[#This Row],[Высота этажа]] -> 0.00 | M74: 1.00 | N74: 1.00 | O74: 1.00 | Q74: 3.00
A75: Андреапольский район | B75: городское поселение город Андреаполь | C75: г. Андреаполь, ул. Кленовая, д. 22 | J75: =Таблица1[[#This Row],[S общ. Здания]]*Таблица1[[#This Row],[Высота этажа]] -> 0.00 | M75: 1.00 | N75: 1.00 | O75: 1.00 | Q75: 3.00
A76: Андреапольский район | B76: городское поселение город Андреаполь | C76: г. Андреаполь, ул. Кленовая, д. 23 | J76: =Таблица1[[#This Row],[S общ. Здания]]*Таблица1[[#This Row],[Высота этажа]] -> 0.00 | M76: 1.00 | N76: 1.00 | O76: 1.00 | Q76: 3.00
A77: Андреапольский район | B77: городское поселение город Андреаполь | C77: г. Андреаполь, ул. Кленовая, д. 24 | J77: =Таблица1[[#This Row],[S общ. Здания]]*Таблица1[[#This Row],[Высота этажа]] -> 0.00 | M77: 1.00 | N77: 1.00 | O77: 1.00 | Q77: 3.00
A78: Андреапольский район | B78: городское поселение город Андреаполь | C78: г. Андреаполь, ул. Кленовая, д. 30 | J78: =Таблица1[[#This Row],[S общ. Здания]]*Таблица1[[#This Row],[Высота этажа]] -> 0.00 | M78: 1.00 | N78: 1.00 | O78: 1.00 | Q78: 3.00
A79: Андреапольский район | B79: городское поселение город Андреаполь | C79: г. Андреаполь, ул. Кленовая, д. 31 | J79: =Таблица1[[#This Row],[S общ. Здания]]*Таблица1[[#This Row],[Высота этажа]] -> 0.00 | M79: 1.00 | N79: 1.00 | O79: 1.00 | Q79: 3.00
A80: Андреапольский район | B80: городское поселение город Андреаполь | C80: г. Андреаполь, ул. Кленовая, д. 32 | J80: =Таблица1[[#This Row],[S общ. Здания]]*Таблица1[[#This Row],[Высота этажа]] -> 0.00 | M80: 1.00 | N80: 1.00 | O80: 1.00 | Q80: 3.00
A81: Андреапольский район | B81: городское поселение город Андреаполь | C81: г. Андреаполь, ул. Кленовая, д. 34 | J81: =Таблица1[[#This Row],[S общ. Здания]]*Таблица1[[#This Row],[Высота этажа]] -> 0.00 | M81: 1.00 | N81: 1.00 | O81: 1.00 | Q81: 3.00
A82: Андреапольский район | B82: городское поселение город Андреаполь | C82: г. Андреаполь, ул. Кленовая, д. 35 | J82: =Таблица1[[#This Row],[S общ. Здания]]*Таблица1[[#This Row],[Высота этажа]] -> 0.00 | M82: 1.00 | N82: 1.00 | O82: 1.00 | Q82: 3.00
A83: Андреапольский район | B83: городское поселение город Андреаполь | C83: г. Андреаполь, ул. Кленовая, д. 36 | J83: =Таблица1[[#This Row],[S общ. Здания]]*Таблица1[[#This Row],[Высота этажа]] -> 0.00 | M83: 1.00 | N83: 1.00 | O83: 1.00 | Q83: 3.00
A84: Андреапольский район | B84: городское поселение город Андреаполь | C84: г. Андреаполь, ул. Кленовая, д. 37 | J84: =Таблица1[[#This Row],[S общ. Здания]]*Таблица1[[#This Row],[Высота этажа]] -> 0.00 | M84: 1.00 | N84: 1.00 | O84: 1.00 | Q84: 3.00
A85: Андреапольский район | B85: городское поселение город Андреаполь | C85: г. Андреаполь, ул. Кленовая, д. 39 | J85: =Таблица1[[#This Row],[S общ. Здания]]*Таблица1[[#This Row],[Высота этажа]] -> 0.00 | M85: 1.00 | N85: 1.00 | O85: 1.00 | Q85: 3.00
A86: Андреапольский район | B86: городское поселение город Андреаполь | C86: г. Андреаполь, ул. Кленовая, д. 4 | D86: 528.40 | E86: 572.60 | G86: 480.00 | H86: с | I86: 422.00 | J86: =Таблица1[[#This Row],[S общ. Здания]]*Таблица1[[#This Row],[Высота этажа]] -> 1,717.80 | M86: 1.00 | P86: 2.00 | Q86: 3.00 | S86: 2020-11-24 | T86: 2019-10-08
A87: Андреапольский район | B87: городское поселение город Андреаполь | C87: г. Андреаполь, ул. Ломоносова, д. 1, корпус 1 | J87: =Таблица1[[#This Row],[S общ. Здания]]*Таблица1[[#This Row],[Высота этажа]] -> 0.00 | M87: 1.00 | N87: 1.00 | O87: 1.00 | Q87: 3.00
A88: Андреапольский район | B88: городское поселение город Андреаполь | C88: г. Андреаполь, ул. Ломоносова, д. 1, корпус 2 | J88: =Таблица1[[#This Row],[S общ. Здания]]*Таблица1[[#This Row],[Высота этажа]] -> 0.00 | M88: 1.00 | N88: 1.00 | O88: 1.00 | Q88: 3.00
A89: Андреапольский район | B89: городское поселение город Андреаполь | C89: г. Андреаполь, ул. Ломоносова, д. 1, корпус 3 | J89: =Таблица1[[#This Row],[S общ. Здания]]*Таблица1[[#This Row],[Высота этажа]] -> 0.00 | M89: 1.00 | N89: 1.00 | O89: 1.00 | Q89: 3.00
A90: Андреапольский район | B90: городское поселение город Андреаполь | C90: г. Андреаполь, ул. Ломоносова, д. 1, корпус 4 | J90: =Таблица1[[#This Row],[S общ. Здания]]*Таблица1[[#This Row],[Высота этажа]] -> 0.00 | M90: 1.00 | N90: 1.00 | O90: 1.00 | Q90: 3.00
A91: Андреапольский район | B91: городское поселение город Андреаполь | C91: г. Андреаполь, ул. М.Складская, д. 10 | J91: =Таблица1[[#This Row],[S общ. Здания]]*Таблица1[[#This Row],[Высота этажа]] -> 0.00 | M91: 1.00 | N91: 1.00 | O91: 1.00 | Q91: 3.00
A92: Андреапольский район | B92: городское поселение город Андреаполь | C92: г. Андреаполь, ул. М.Складская, д. 2 | J92: =Таблица1[[#This Row],[S общ. Здания]]*Таблица1[[#This Row],[Высота этажа]] -> 0.00 | M92: 1.00 | N92: 1.00 | O92: 1.00 | Q92: 3.00
A93: Андреапольский район | B93: городское поселение город Андреаполь | C93: г. Андреаполь, ул. М.Складская, д. 4 | J93: =Таблица1[[#This Row],[S общ. Здания]]*Таблица1[[#This Row],[Высота этажа]] -> 0.00 | M93: 1.00 | N93: 1.00 | O93: 1.00 | Q93: 3.00
A94: Андреапольский район | B94: городское поселение город Андреаполь | C94: г. Андреаполь, ул. М.Складская, д. 6 | J94: =Таблица1[[#This Row],[S общ. Здания]]*Таблица1[[#This Row],[Высота этажа]] -> 0.00 | M94: 1.00 | N94: 1.00 | O94: 1.00 | Q94: 3.00
A95: Андреапольский район | B95: городское поселение город Андреаполь | C95: г. Андреаполь, ул. М.Складская, д. 8 | D95: 1,179.60 | E95: 1,179.60 | G95: 960.00 | H95: с | I95: 658.00 | J95: =Таблица1[[#This Row],[S общ. Здания]]*Таблица1[[#This Row],[Высота этажа]] -> 3,538.80 | P95: 2.00 | Q95: 3.00 | S95: 2020-11-24 | T95: 2019-10-08
A96: Андреапольский район | B96: городское поселение город Андреаполь | C96: г. Андреаполь, ул. Новгородская, д. 12 | J96: =Таблица1[[#This Row],[S общ. Здания]]*Таблица1[[#This Row],[Высота этажа]] -> 0.00 | M96: 1.00 | N96: 1.00 | O96: 1.00 | Q96: 3.00
A97: Андреапольский район | B97: городское поселение город Андреаполь | C97: г. Андреаполь, ул. Новгородская, д. 14 | J97: =Таблица1[[#This Row],[S общ. Здания]]*Таблица1[[#This Row],[Высота этажа]] -> 0.00 | M97: 1.00 | N97: 1.00 | O97: 1.00 | Q97: 3.00
A98: Андреапольский район | B98: городское поселение город Андреаполь | C98: г. Андреаполь, ул. Новгородская, д. 14а | J98: =Таблица1[[#This Row],[S общ. Здания]]*Таблица1[[#This Row],[Высота этажа]] -> 0.00 | M98: 1.00 | N98: 1.00 | O98: 1.00 | Q98: 3.00
A99: Андреапольский район | B99: городское поселение город Андреаполь | C99: г. Андреаполь, ул. Новгородская, д. 18 | J99: =Таблица1[[#This Row],[S общ. Здания]]*Таблица1[[#This Row],[Высота этажа]] -> 0.00 | M99: 1.00 | N99: 1.00 | O99: 1.00 | Q99: 3.00
A100: Андреапольский район | B100: городское поселение город Андреаполь | C100: г. Андреаполь, ул. Октябрьская, д. 56 | I100: 450.00 | J100: =Таблица1[[#This Row],[S общ. Здания]]*Таблица1[[#This Row],[Высота этажа]] -> 0.00 | M100: 1.00 | N100: 1.00 | O100: 1.00 | Q100: 3.00
A101: Андреапольский район | B101: городское поселение город Андреаполь | C101: г. Андреаполь, ул. Октябрьская, д. 58 | J101: =Таблица1[[#This Row],[S общ. Здания]]*Таблица1[[#This Row],[Высота этажа]] -> 0.00 | M101: 1.00 | N101: 1.00 | O101: 1.00 | Q101: 3.00
A102: Андреапольский район | B102: городское поселение город Андреаполь | C102: г. Андреаполь, ул. Октябрьская, д. 59 | J102: =Таблица1[[#This Row],[S общ. Здания]]*Таблица1[[#This Row],[Высота этажа]] -> 0.00 | M102: 1.00 | N102: 1.00 | O102: 1.00 | Q102: 3.00
A103: Андреапольский район | B103: городское поселение город Андреаполь | C103: г. Андреаполь, ул. Октябрьская, д. 60 | J103: =Таблица1[[#This Row],[S общ. Здания]]*Таблица1[[#This Row],[Высота этажа]] -> 0.00 | M103: 1.00 | N103: 1.00 | O103: 1.00 | Q103: 3.00
A104: Андреапольский район | B104: городское поселение город Андреаполь | C104: г. Андреаполь, ул. Половчени, д. 10 | D104: 283.20 | E104: 444.80 | G104: 450.00 | H104: с | I104: 284.00 | J104: =Таблица1[[#This Row],[S общ. Здания]]*Таблица1[[#This Row],[Высота этажа]] -> 1,334.40 | P104: 2.00 | Q104: 3.00 | S104: 2020-11-24 | T104: 2019-10-08
A105: Андреапольский район | B105: городское поселение город Андреаполь | C105: г. Андреаполь, ул. Половчени, д. 10а | D105: 290.80 | E105: 451.70 | G105: 465.00 | H105: с | I105: 288.00 | J105: =Таблица1[[#This Row],[S общ. Здания]]*Таблица1[[#This Row],[Высота этажа]] -> 1,355.10 | P105: 2.00 | Q105: 3.00 | S105: 2020-11-24 | T105: 2019-10-08
A106: Андреапольский район | B106: городское поселение город Андреаполь | C106: г. Андреаполь, ул. Половчени, д. 12 | D106: 291.80 | E106: 444.20 | G106: 300.00 | H106: с | I106: 180.00 | J106: =Таблица1[[#This Row],[S общ. Здания]]*Таблица1[[#This Row],[Высота этажа]] -> 1,332.60 | N106: 1.00 | P106: 2.00 | Q106: 3.00 | S106: 2020-11-24 | T106: 2019-10-08
A107: Андреапольский район | B107: городское поселение город Андреаполь | C107: г. Андреаполь, ул. Половчени, д. 13 | J107: =Таблица1[[#This Row],[S общ. Здания]]*Таблица1[[#This Row],[Высота этажа]] -> 0.00 | M107: 1.00 | N107: 1.00 | O107: 1.00 | Q107: 3.00
A108: Андреапольский район | B108: городское поселение город Андреаполь | C108: г. Андреаполь, ул. Половчени, д. 14 | D108: 284.40 | E108: 473.80 | G108: 315.00 | H108: с | I108: 195.00 | J108: =Таблица1[[#This Row],[S общ. Здания]]*Таблица1[[#This Row],[Высота этажа]] -> 1,421.40 | M108: 1.00 | N108: 1.00 | O108: 1.00 | P108: 2.00 | Q108: 3.00
A109: Андреапольский район | B109: городское поселение город Андреаполь | C109: г. Андреаполь, ул. Половчени, д. 18 | D109: 217.90 | E109: 320.10 | G109: 285.00 | H109: с | I109: 180.00 | J109: =Таблица1[[#This Row],[S общ. Здания]]*Таблица1[[#This Row],[Высота этажа]] -> 960.30 | M109: 1.00 | N109: 1.00 | O109: 1.00 | P109: 2.00 | Q109: 3.00
A110: Андреапольский район | B110: городское поселение город Андреаполь | C110: г. Андреаполь, ул. Половчени, д. 4 | D110: 396.40 | E110: 396.40 | G110: 380.00 | H110: с | I110: 252.00 | J110: =Таблица1[[#This Row],[S общ. Здания]]*Таблица1[[#This Row],[Высота этажа]] -> 1,189.20 | P110: 2.00 | Q110: 3.00 | S110: 2020-11-24 | T110: 2019-10-08
A111: Андреапольский район | B111: городское поселение город Андреаполь | C111: г. Андреаполь, ул. Половчени, д. 5а | I111: 505.00 | J111: =Таблица1[[#This Row],[S общ. Здания]]*Таблица1[[#This Row],[Высота этажа]] -> 0.00 | M111: 1.00 | N111: 1.00 | O111: 1.00 | P111: 2.00 | Q111: 3.00
A112: Андреапольский район | B112: городское поселение город Андреаполь | C112: г. Андреаполь, ул. Половчени, д. 6 | D112: 312.30 | E112: 312.30 | G112: 300.00 | H112: с | I112: 180.00 | J112: =Таблица1[[#This Row],[S общ. Здания]]*Таблица1[[#This Row],[Высота этажа]] -> 936.90 | P112: 2.00 | Q112: 3.00 | S112: 2020-11-24 | T112: 2019-10-08
A113: Андреапольский район | B113: городское поселение город Андреаполь | C113: г. Андреаполь, ул. Половчени, д. 8 | I113: 364.00 | J113: =Таблица1[[#This Row],[S общ. Здания]]*Таблица1[[#This Row],[Высота этажа]] -> 0.00 | M113: 1.00 | N113: 1.00 | O113: 1.00 | Q113: 3.00
A114: Андреапольский район | B114: городское поселение город Андреаполь | C114: г. Андреаполь, ул. Половчени, д. 9 | J114: =Таблица1[[#This Row],[S общ. Здания]]*Таблица1[[#This Row],[Высота этажа]] -> 0.00 | M114: 1.00 | N114: 1.00 | O114: 1.00 | Q114: 3.00
A115: Андреапольский район | B115: городское поселение город Андреаполь | C115: г. Андреаполь, ул. Советская, д. 35 | J115: =Таблица1[[#This Row],[S общ. Здания]]*Таблица1[[#This Row],[Высота этажа]] -> 0.00 | M115: 1.00 | N115: 1.00 | O115: 1.00 | Q115: 3.00
A116: Андреапольский район | B116: городское поселение город Андреаполь | C116: г. Андреаполь, ул. Советская, д. 51 | J116: =Таблица1[[#This Row],[S общ. Здания]]*Таблица1[[#This Row],[Высота этажа]] -> 0.00 | M116: 1.00 | N116: 1.00 | O116: 1.00 | Q116: 3.00
A117: Андреапольский район | B117: городское поселение город Андреаполь | C117: г. Андреаполь, ул. Советская, д. 53 | J117: =Таблица1[[#This Row],[S общ. Здания]]*Таблица1[[#This Row],[Высота этажа]] -> 0.00 | M117: 1.00 | N117: 1.00 | O117: 1.00 | Q117: 3.00
A118: Андреапольский район | B118: городское поселение город Андреаполь | C118: г. Андреаполь, ул. Советская, д. 55 | J118: =Таблица1[[#This Row],[S общ. Здания]]*Таблица1[[#This Row],[Высота этажа]] -> 0.00 | M118: 1.00 | N118: 1.00 | O118: 1.00 | Q118: 3.00
A119: Андреапольский район | B119: городское поселение город Андреаполь | C119: г. Андреаполь, ул. Советская, д. 59 | J119: =Таблица1[[#This Row],[S общ. Здания]]*Таблица1[[#This Row],[Высота этажа]] -> 0.00 | M119: 1.00 | N119: 1.00 | O119: 1.00 | Q119: 3.00
A120: Андреапольский район | B120: городское поселение город Андреаполь | C120: г. Андреаполь, ул. Советская, д. 61 | J120: =Таблица1[[#This Row],[S общ. Здания]]*Таблица1[[#This Row],[Высота этажа]] -> 0.00 | M120: 1.00 | N120: 1.00 | O120: 1.00 | Q120: 3.00
A121: Андреапольский район | B121: городское поселение город Андреаполь | C121: г. Андреаполь, ул. Советская, д. 65А | D121: 351.10 | E121: 383.90 | G121: 460.00 | H121: с | I121: 380.00 | J121: =Таблица1[[#This Row],[S общ. Здания]]*Таблица1[[#This Row],[Высота этажа]] -> 1,151.70 | N121: 1.00 | P121: 2.00 | Q121: 3.00 | S121: 2020-11-24 | T121: 2019-10-08
A122: Андреапольский район | B122: городское поселение город Андреаполь | C122: г. Андреаполь, ул. Советская, д. 67А | J122: =Таблица1[[#This Row],[S общ. Здания]]*Таблица1[[#This Row],[Высота этажа]] -> 0.00 | M122: 1.00 | N122: 1.00 | O122: 1.00 | Q122: 3.00
A123: Андреапольский район | B123: городское поселение город Андреаполь | C123: г. Андреаполь, ул. Театральная, д. 11 | D123: 466.00 | E123: 520.60 | G123: 580.00 | H123: с | I123: 476.00 | J123: =Таблица1[[#This Row],[S общ. Здания]]*Таблица1[[#This Row],[Высота этажа]] -> 1,561.80 | N123: 1.00 | P123: 2.00 | Q123: 3.00 | S123: 2020-11-24 | T123: 2019-10-08
A124: Андреапольский район | B124: городское поселение город Андреаполь | C124: г. Андреаполь, ул. Театральная, д. 3 | D124: 336.00 | E124: 363.60 | G124: 250.00 | H124: с | I124: 408.00 | J124: =Таблица1[[#This Row],[S общ. Здания]]*Таблица1[[#This Row],[Высота этажа]] -> 1,090.80 | N124: 1.00 | P124: 2.00 | Q124: 3.00 | S124: 2020-11-24 | T124: 2019-10-08
A125: Андреапольский район | B125: городское поселение город Андреаполь | C125: г. Андреаполь, ул. Театральная, д. 8 | D125: 379.40 | E125: 416.70 | G125: 560.00 | H125: с | I125: 437.00 | J125: =Таблица1[[#This Row],[S общ. Здания]]*Таблица1[[#This Row],[Высота этажа]] -> 1,250.10 | N125: 1.00 | P125: 2.00 | Q125: 3.00 | S125: 2020-11-24 | T125: 2019-10-08
A126: Андреапольский район | B126: городское поселение город Андреаполь | C126: г. Андреаполь, ул. Энергетиков, д. 33 | J126: =Таблица1[[#This Row],[S общ. Здания]]*Таблица1[[#This Row],[Высота этажа]] -> 0.00 | M126: 1.00 | N126: 1.00 | O126: 1.00 | Q126: 3.00
A127: Бежецкий район | B127: Борковское сельское поселение | C127: д. Борок Сулежский, д. 17 | J127: =Таблица1[[#This Row],[S общ. Здания]]*Таблица1[[#This Row],[Высота этажа]] -> 0.00 | M127: 1.00 | N127: 1.00 | O127: 1.00 | Q127: 3.00
A128: Бежецкий район | B128: Борковское сельское поселение | C128: д. Борок Сулежский, д. 2 | J128: =Таблица1[[#This Row],[S общ. Здания]]*Таблица1[[#This Row],[Высота этажа]] -> 0.00 | M128: 1.00 | N128: 1.00 | O128: 1.00 | Q128: 3.00
A129: Бежецкий район | B129: Борковское сельское поселение | C129: д. Борок Сулежский, д. 32 | J129: =Таблица1[[#This Row],[S общ. Здания]]*Таблица1[[#This Row],[Высота этажа]] -> 0.00 | M129: 1.00 | N129: 1.00 | O129: 1.00 | Q129: 3.00
A130: Бежецкий район | B130: Борковское сельское поселение | C130: д. Борок Сулежский, д. 4 | J130: =Таблица1[[#This Row],[S общ. Здания]]*Таблица1[[#This Row],[Высота этажа]] -> 0.00 | M130: 1.00 | N130: 1.00 | O130: 1.00 | Q130: 3.00
A131: Бежецкий район | B131: Борковское сельское поселение | C131: д. Борок Сулежский, д. 6 | J131: =Таблица1[[#This Row],[S общ. Здания]]*Таблица1[[#This Row],[Высота этажа]] -> 0.00 | M131: 1.00 | N131: 1.00 | O131: 1.00 | Q131: 3.00
A132: Бежецкий район | B132: Борковское сельское поселение | C132: д. Морозово, д. 82 | J132: =Таблица1[[#This Row],[S общ. Здания]]*Таблица1[[#This Row],[Высота этажа]] -> 0.00 | M132: 1.00 | N132: 1.00 | O132: 1.00 | Q132: 3.00
A133: Бежецкий район | B133: Борковское сельское поселение | C133: д. Морозово, д. 84 | J133: =Таблица1[[#This Row],[S общ. Здания]]*Таблица1[[#This Row],[Высота этажа]] -> 0.00 | M133: 1.00 | N133: 1.00 | O133: 1.00 | Q133: 3.00
A134: Бежецкий район | B134: Борковское сельское поселение | C134: с. Градницы, д. 1 | J134: =Таблица1[[#This Row],[S общ. Здания]]*Таблица1[[#This Row],[Высота этажа]] -> 0.00 | M134: 1.00 | N134: 1.00 | O134: 1.00 | Q134: 3.00
A135: Бежецкий район | B135: Борковское сельское поселение | C135: с. Градницы, д. 2 | J135: =Таблица1[[#This Row],[S общ. Здания]]*Таблица1[[#This Row],[Высота этажа]] -> 0.00 | M135: 1.00 | N135: 1.00 | O135: 1.00 | Q135: 3.00
A136: Бежецкий район | B136: Борковское сельское поселение | C136: с. Градницы, д. 31 | J136: =Таблица1[[#This Row],[S общ. Здания]]*Таблица1[[#This Row],[Высота этажа]] -> 0.00 | M136: 1.00 | N136: 1.00 | O136: 1.00 | Q136: 3.00
A137: Бежецкий район | B137: Васюковское сельское поселение | C137: д. Васюково, ул. Старая, д. 14 | J137: =Таблица1[[#This Row],[S общ. Здания]]*Таблица1[[#This Row],[Высота этажа]] -> 0.00 | M137: 1.00 | N137: 1.00 | O137: 1.00 | Q137: 3.00
A138: Бежецкий район | B138: Васюковское сельское поселение | C138: д. Васюково, ул. Центральная, д. 16 | J138: =Таблица1[[#This Row],[S общ. Здания]]*Таблица1[[#This Row],[Высота этажа]] -> 0.00 | M138: 1.00 | N138: 1.00 | O138: 1.00 | Q138: 3.00
A139: Бежецкий район | B139: Васюковское сельское поселение | C139: д. Васюково, ул. Центральная, д. 18 | J139: =Таблица1[[#This Row],[S общ. Здания]]*Таблица1[[#This Row],[Высота этажа]] -> 0.00 | M139: 1.00 | N139: 1.00 | O139: 1.00 | Q139: 3.00
A140: Бежецкий район | B140: Васюковское сельское поселение | C140: д. Васюково, ул. Центральная, д. 20 | J140: =Таблица1[[#This Row],[S общ. Здания]]*Таблица1[[#This Row],[Высота этажа]] -> 0.00 | M140: 1.00 | N140: 1.00 | O140: 1.00 | Q140: 3.00
A141: Бежецкий район | B141: Городищенское сельское поселение | C141: д. Городищи, ул. Центральная, д. 4 | J141: =Таблица1[[#This Row],[S общ. Здания]]*Таблица1[[#This Row],[Высота этажа]] -> 0.00 | M141: 1.00 | N141: 1.00 | O141: 1.00 | Q141: 3.00
A142: Бежецкий район | B142: Городищенское сельское поселение | C142: д. Малые Городищи, д. 1А | J142: =Таблица1[[#This Row],[S общ. Здания]]*Таблица1[[#This Row],[Высота этажа]] -> 0.00 | M142: 1.00 | N142: 1.00 | O142: 1.00 | Q142: 3.00
A143: Бежецкий район | B143: Городищенское сельское поселение | C143: д. Орлиха 3-я, д. 11 | J143: =Таблица1[[#This Row],[S общ. Здания]]*Таблица1[[#This Row],[Высота этажа]] -> 0.00 | M143: 1.00 | N143: 1.00 | O143: 1.00 | Q143: 3.00
A144: Бежецкий район | B144: Городищенское сельское поселение | C144: д. Орлиха 3-я, д. 11А | J144: =Таблица1[[#This Row],[S общ. Здания]]*Таблица1[[#This Row],[Высота этажа]] -> 0.00 | M144: 1.00 | N144: 1.00 | O144: 1.00 | Q144: 3.00
A145: Бежецкий район | B145: Городищенское сельское поселение | C145: д. Подобино, ул. Центральная, д. 2 | J145: =Таблица1[[#This Row],[S общ. Здания]]*Таблица1[[#This Row],[Высота этажа]] -> 0.00 | M145: 1.00 | N145: 1.00 | O145: 1.00 | Q145: 3.00
A146: Бежецкий район | B146: Городищенское сельское поселение | C146: д. Подобино, ул. Центральная, д. 3 | J146: =Таблица1[[#This Row],[S общ. Здания]]*Таблица1[[#This Row],[Высота этажа]] -> 0.00 | M146: 1.00 | N146: 1.00 | O146: 1.00 | Q146: 3.00
A147: Бежецкий район | B147: Городищенское сельское поселение | C147: д. Подобино, ул. Центральная, д. 4 | J147: =Таблица1[[#This Row],[S общ. Здания]]*Таблица1[[#This Row],[Высота этажа]] -> 0.00 | M147: 1.00 | N147: 1.00 | O147: 1.00 | Q147: 3.00
A148: Бежецкий район | B148: Городищенское сельское поселение | C148: д. Подобино, ул. Центральная, д. 5 | J148: =Таблица1[[#This Row],[S общ. Здания]]*Таблица1[[#This Row],[Высота этажа]] -> 0.00 | M148: 1.00 | N148: 1.00 | O148: 1.00 | Q148: 3.00
A149: Бежецкий район | B149: Городищенское сельское поселение | C149: д. Подобино, ул. Южная, д. 2 | J149: =Таблица1[[#This Row],[S общ. Здания]]*Таблица1[[#This Row],[Высота этажа]] -> 0.00 | M149: 1.00 | N149: 1.00 | O149: 1.00 | Q149: 3.00
A150: Бежецкий район | B150: Городищенское сельское поселение | C150: д. Подобино, ул. Южная, д. 6 | J150: =Таблица1[[#This Row],[S общ. Здания]]*Таблица1[[#This Row],[Высота этажа]] -> 0.00 | M150: 1.00 | N150: 1.00 | O150: 1.00 | Q150: 3.00
A151: Бежецкий район | B151: Городищенское сельское поселение | C151: д. Подобино, ул. Южная, д. 8 | J151: =Таблица1[[#This Row],[S общ. Здания]]*Таблица1[[#This Row],[Высота этажа]] -> 0.00 | M151: 1.00 | N151: 1.00 | O151: 1.00 | Q151: 3.00
A152: Бежецкий район | B152: Городищенское сельское поселение | C152: д. Ругатино, д. 1 | J152: =Таблица1[[#This Row],[S общ. Здания]]*Таблица1[[#This Row],[Высота этажа]] -> 0.00 | M152: 1.00 | N152: 1.00 | O152: 1.00 | Q152: 3.00
A153: Бежецкий район | B153: Городищенское сельское поселение | C153: д. Ругатино, д. 3 | J153: =Таблица1[[#This Row],[S общ. Здания]]*Таблица1[[#This Row],[Высота этажа]] -> 0.00 | M153: 1.00 | N153: 1.00 | O153: 1.00 | Q153: 3.00
A154: Бежецкий район | B154: Городищенское сельское поселение | C154: д. Ульянова Гора, д. 38 | J154: =Таблица1[[#This Row],[S общ. Здания]]*Таблица1[[#This Row],[Высота этажа]] -> 0.00 | M154: 1.00 | N154: 1.00 | O154: 1.00 | Q154: 3.00
A155: Бежецкий район | B155: Городищенское сельское поселение | C155: с. Княжево, д. 5 | J155: =Таблица1[[#This Row],[S общ. Здания]]*Таблица1[[#This Row],[Высота этажа]] -> 0.00 | M155: 1.00 | N155: 1.00 | O155: 1.00 | Q155: 3.00
A156: Бежецкий район | B156: городское поселение город Бежецк | C156: г. Бежецк, наб. Рядового Николаева, д. 11 | J156: =Таблица1[[#This Row],[S общ. Здания]]*Таблица1[[#This Row],[Высота этажа]] -> 0.00 | M156: 1.00 | N156: 1.00 | O156: 1.00 | Q156: 3.00
A157: Бежецкий район | B157: городское поселение город Бежецк | C157: г. Бежецк, наб. Рядового Николаева, д. 12 | J157: =Таблица1[[#This Row],[S общ. Здания]]*Таблица1[[#This Row],[Высота этажа]] -> 0.00 | M157: 1.00 | N157: 1.00 | O157: 1.00 | Q157: 3.00
A158: Бежецкий район | B158: городское поселение город Бежецк | C158: г. Бежецк, наб. Рядового Николаева, д. 13 | J158: =Таблица1[[#This Row],[S общ. Здания]]*Таблица1[[#This Row],[Высота этажа]] -> 0.00 | M158: 1.00 | N158: 1.00 | O158: 1.00 | Q158: 3.00
A159: Бежецкий район | B159: городское поселение город Бежецк | C159: г. Бежецк, наб. Рядового Николаева, д. 16/1 | J159: =Таблица1[[#This Row],[S общ. Здания]]*Таблица1[[#This Row],[Высота этажа]] -> 0.00 | M159: 1.00 | N159: 1.00 | O159: 1.00 | Q159: 3.00
A160: Бежецкий район | B160: городское поселение город Бежецк | C160: г. Бежецк, наб. Рядового Николаева, д. 16/2 | J160: =Таблица1[[#This Row],[S общ. Здания]]*Таблица1[[#This Row],[Высота этажа]] -> 0.00 | M160: 1.00 | N160: 1.00 | O160: 1.00 | Q160: 3.00
A161: Бежецкий район | B161: городское поселение город Бежецк | C161: г. Бежецк, наб. Рядового Николаева, д. 17 | J161: =Таблица1[[#This Row],[S общ. Здания]]*Таблица1[[#This Row],[Высота этажа]] -> 0.00 | M161: 1.00 | N161: 1.00 | O161: 1.00 | Q161: 3.00
A162: Бежецкий район | B162: городское поселение город Бежецк | C162: г. Бежецк, наб. Рядового Николаева, д. 2 | J162: =Таблица1[[#This Row],[S общ. Здания]]*Таблица1[[#This Row],[Высота этажа]] -> 0.00 | M162: 1.00 | N162: 1.00 | O162: 1.00 | Q162: 3.00
A163: Бежецкий район | B163: городское поселение город Бежецк | C163: г. Бежецк, наб. Рядового Николаева, д. 2а | J163: =Таблица1[[#This Row],[S общ. Здания]]*Таблица1[[#This Row],[Высота этажа]] -> 0.00 | M163: 1.00 | N163: 1.00 | O163: 1.00 | Q163: 3.00
A164: Бежецкий район | B164: городское поселение город Бежецк | C164: г. Бежецк, наб. Рядового Николаева, д. 5 | D164: 1,055.00 | E164: 1,055.00 | F164: 153.70 | G164: 412.87 | H164: с | I164: 882.45 | J164: =Таблица1[[#This Row],[S общ. Здания]]*Таблица1[[#This Row],[Высота этажа]] -> 3,165.00 | M164: 1.00 | N164: 1.00 | P164: 3.00 | Q164: 3.00 | S164: 2020-11-24 | T164: 2019-10-21 | U164: 1
A165: Бежецкий район | B165: городское поселение город Бежецк | C165: г. Бежецк, наб. Рядового Николаева, д. 6 | J165: =Таблица1[[#This Row],[S общ. Здания]]*Таблица1[[#This Row],[Высота этажа]] -> 0.00 | M165: 1.00 | N165: 1.00 | O165: 1.00 | Q165: 3.00
A166: Бежецкий район | B166: городское поселение город Бежецк | C166: г. Бежецк, наб. Рядового Николаева, д. 8 | J166: =Таблица1[[#This Row],[S общ. Здания]]*Таблица1[[#This Row],[Высота этажа]] -> 0.00 | M166: 1.00 | N166: 1.00 | O166: 1.00 | Q166: 3.00
A167: Бежецкий район | B167: городское поселение город Бежецк | C167: г. Бежецк, наб. Рядового Николаева, д. 8а | J167: =Таблица1[[#This Row],[S общ. Здания]]*Таблица1[[#This Row],[Высота этажа]] -> 0.00 | M167: 1.00 | N167: 1.00 | O167: 1.00 | Q167: 3.00
A168: Бежецкий район | B168: городское поселение город Бежецк | C168: г. Бежецк, наб. Рядового Николаева, д. 9 | J168: =Таблица1[[#This Row],[S общ. Здания]]*Таблица1[[#This Row],[Высота этажа]] -> 0.00 | M168: 1.00 | N168: 1.00 | O168: 1.00 | Q168: 3.00
A169: Бежецкий район | B169: городское поселение город Бежецк | C169: г. Бежецк, п. Кирпичный, д. 2 | J169: =Таблица1[[#This Row],[S общ. Здания]]*Таблица1[[#This Row],[Высота этажа]] -> 0.00 | M169: 1.00 | N169: 1.00 | O169: 1.00 | Q169: 3.00
A170: Бежецкий район | B170: городское поселение город Бежецк | C170: г. Бежецк, п. Северный, д. 1 | J170: =Таблица1[[#This Row],[S общ. Здания]]*Таблица1[[#This Row],[Высота этажа]] -> 0.00 | M170: 1.00 | N170: 1.00 | O170: 1.00 | Q170: 3.00
A171: Бежецкий район | B171: городское поселение город Бежецк | C171: г. Бежецк, п. Северный, д. 2 | J171: =Таблица1[[#This Row],[S общ. Здания]]*Таблица1[[#This Row],[Высота этажа]] -> 0.00 | M171: 1.00 | N171: 1.00 | O171: 1.00 | Q171: 3.00
A172: Бежецкий район | B172: городское поселение город Бежецк | C172: г. Бежецк, пер. Воздвиженский, д. 32 | D172: 2,699.80 | E172: 2,699.80 | F172: 598.50 | G172: 743.00 | H172: п | I172: 2,681.00 | J172: =Таблица1[[#This Row],[S общ. Здания]]*Таблица1[[#This Row],[Высота этажа]] -> 8,099.40 | M172: 1.00 | N172: 1.00 | O172: 1.00 | P172: 5.00 | Q172: 3.00 | S172: 2020-11-24 | T172: 2020-08-17 | U172: 1
A173: Бежецкий район | B173: городское поселение город Бежецк | C173: г. Бежецк, пер. Воздвиженский, д. 34 | J173: =Таблица1[[#This Row],[S общ. Здания]]*Таблица1[[#This Row],[Высота этажа]] -> 0.00 | M173: 1.00 | N173: 1.00 | O173: 1.00 | Q173: 3.00
A174: Бежецкий район | B174: городское поселение город Бежецк | C174: г. Бежецк, пер. имени В.В.Андреева, д. 18 | J174: =Таблица1[[#This Row],[S общ. Здания]]*Таблица1[[#This Row],[Высота этажа]] -> 0.00 | M174: 1.00 | N174: 1.00 | O174: 1.00 | Q174: 3.00
A175: Бежецкий район | B175: городское поселение город Бежецк | C175: г. Бежецк, пер. имени В.В.Андреева, д. 38/40 | J175: =Таблица1[[#This Row],[S общ. Здания]]*Таблица1[[#This Row],[Высота этажа]] -> 0.00 | M175: 1.00 | N175: 1.00 | O175: 1.00 | Q175: 3.00
A176: Бежецкий район | B176: городское поселение город Бежецк | C176: г. Бежецк, пер. Молодежный, д. 18 | J176: =Таблица1[[#This Row],[S общ. Здания]]*Таблица1[[#This Row],[Высота этажа]] -> 0.00 | M176: 1.00 | N176: 1.00 | O176: 1.00 | Q176: 3.00
A177: Бежецкий район | B177: городское поселение город Бежецк | C177: г. Бежецк, пер. Молодежный, д. 32 | J177: =Таблица1[[#This Row],[S общ. Здания]]*Таблица1[[#This Row],[Высота этажа]] -> 0.00 | M177: 1.00 | N177: 1.00 | O177: 1.00 | Q177: 3.00
A178: Бежецкий район | B178: городское поселение город Бежецк | C178: г. Бежецк, пер. Октябрьский, д. 19 | D178: =4159.4+248.4 -> 4,407.80 | E178: 4,407.80 | F178: 1,256.96 | G178: 1,256.96 | H178: п | I178: 3,285.60 | J178: =Таблица1[[#This Row],[S общ. Здания]]*Таблица1[[#This Row],[Высота этажа]] -> 13,223.40 | P178: 5.00 | Q178: 3.00 | S178: 2020-11-24 | T178: 2020-08-17 | U178: 1
A179: Бежецкий район | B179: городское поселение город Бежецк | C179: г. Бежецк, пер. Остречинский, д. 15 | J179: =Таблица1[[#This Row],[S общ. Здания]]*Таблица1[[#This Row],[Высота этажа]] -> 0.00 | M179: 1.00 | N179: 1.00 | O179: 1.00 | Q179: 3.00
A180: Бежецкий район | B180: городское поселение город Бежецк | C180: г. Бежецк, пер. Остречинский, д. 17 | J180: =Таблица1[[#This Row],[S общ. Здания]]*Таблица1[[#This Row],[Высота этажа]] -> 0.00 | M180: 1.00 | N180: 1.00 | O180: 1.00 | Q180: 3.00
A181: Бежецкий район | B181: городское поселение город Бежецк | C181: г. Бежецк, пер. Остречинский, д. 28/3а | J181: =Таблица1[[#This Row],[S общ. Здания]]*Таблица1[[#This Row],[Высота этажа]] -> 0.00 | M181: 1.00 | N181: 1.00 | O181: 1.00 | Q181: 3.00
A182: Бежецкий район | B182: городское поселение город Бежецк | C182: г. Бежецк, пер. Остречинский, д. 6 | D182: 240.20 | E182: 378.40 | G182: 427.00 | H182: с | I182: 430.95 | J182: =Таблица1[[#This Row],[S общ. Здания]]*Таблица1[[#This Row],[Высота этажа]] -> 1,135.20 | M182: 1.00 | N182: 1.00 | O182: 1.00 | P182: 2.00 | Q182: 3.00 | S182: 2020-11-24 | T182: 2019-10-24 | U182: 1
A183: Бежецкий район | B183: городское поселение город Бежецк | C183: г. Бежецк, пер. Остречинский, д. 8 | J183: =Таблица1[[#This Row],[S общ. Здания]]*Таблица1[[#This Row],[Высота этажа]] -> 0.00 | M183: 1.00 | N183: 1.00 | O183: 1.00 | Q183: 3.00
A184: Бежецкий район | B184: городское поселение город Бежецк | C184: г. Бежецк, пер. Первомайский, д. 31 | J184: =Таблица1[[#This Row],[S общ. Здания]]*Таблица1[[#This Row],[Высота этажа]] -> 0.00 | M184: 1.00 | N184: 1.00 | O184: 1.00 | Q184: 3.00
A185: Бежецкий район | B185: городское поселение город Бежецк | C185: г. Бежецк, пер. Первомайский, д. 33 | D185: 644.90 | E185: 644.90 | G185: 634.00 | H185: с | I185: 544.39 | J185: =Таблица1[[#This Row],[S общ. Здания]]*Таблица1[[#This Row],[Высота этажа]] -> 1,934.70 | M185: 1.00 | N185: 1.00 | O185: 1.00 | P185: 2.00 | Q185: 3.00 | S185: 2020-11-24 | T185: 2020-08-17 | U185: 1
A186: Бежецкий район | B186: городское поселение город Бежецк | C186: г. Бежецк, пер. Первомайский, д. 36 | J186: =Таблица1[[#This Row],[S общ. Здания]]*Таблица1[[#This Row],[Высота этажа]] -> 0.00 | M186: 1.00 | N186: 1.00 | O186: 1.00 | Q186: 3.00
A187: Бежецкий район | B187: городское поселение город Бежецк | C187: г. Бежецк, пер. Первомайский, д. 38 | J187: =Таблица1[[#This Row],[S общ. Здания]]*Таблица1[[#This Row],[Высота этажа]] -> 0.00 | M187: 1.00 | N187: 1.00 | O187: 1.00 | Q187: 3.00
A188: Бежецкий район | B188: городское поселение город Бежецк | C188: г. Бежецк, пер. Первомайский, д. 44 | J188: =Таблица1[[#This Row],[S общ. Здания]]*Таблица1[[#This Row],[Высота этажа]] -> 0.00 | M188: 1.00 | N188: 1.00 | O188: 1.00 | Q188: 3.00
A189: Бежецкий район | B189: городское поселение город Бежецк | C189: г. Бежецк, пер. Первомайский, д. 44А | J189: =Таблица1[[#This Row],[S общ. Здания]]*Таблица1[[#This Row],[Высота этажа]] -> 0.00 | M189: 1.00 | N189: 1.00 | O189: 1.00 | Q189: 3.00
A190: Бежецкий район | B190: городское поселение город Бежецк | C190: г. Бежецк, пер. Первомайский, д. 52 | J190: =Таблица1[[#This Row],[S общ. Здания]]*Таблица1[[#This Row],[Высота этажа]] -> 0.00 | M190: 1.00 | N190: 1.00 | O190: 1.00 | Q190: 3.00
A191: Бежецкий район | B191: городское поселение город Бежецк | C191: г. Бежецк, пер. Пушкинский, д. 13 | J191: =Таблица1[[#This Row],[S общ. Здания]]*Таблица1[[#This Row],[Высота этажа]] -> 0.00 | L191: ОКН | M191: 1.00 | N191: 1.00 | O191: 1.00 | Q191: 3.00
A192: Бежецкий район | B192: городское поселение город Бежецк | C192: г. Бежецк, пер. Пушкинский, д. 19 | J192: =Таблица1[[#This Row],[S общ. Здания]]*Таблица1[[#This Row],[Высота этажа]] -> 0.00 | M192: 1.00 | N192: 1.00 | O192: 1.00 | Q192: 3.00
A193: Бежецкий район | B193: городское поселение город Бежецк | C193: г. Бежецк, пер. Пушкинский, д. 27 | J193: =Таблица1[[#This Row],[S общ. Здания]]*Таблица1[[#This Row],[Высота этажа]] -> 0.00 | M193: 1.00 | N193: 1.00 | O193: 1.00 | Q193: 3.00
A194: Бежецкий район | B194: городское поселение город Бежецк | C194: г. Бежецк, пер. Пушкинский, д. 6 | J194: =Таблица1[[#This Row],[S общ. Здания]]*Таблица1[[#This Row],[Высота этажа]] -> 0.00 | M194: 1.00 | N194: 1.00 | O194: 1.00 | Q194: 3.00
A195: Бежецкий район | B195: городское поселение город Бежецк | C195: г. Бежецк, пер. Революционный, д. 10 | J195: =Таблица1[[#This Row],[S общ. Здания]]*Таблица1[[#This Row],[Высота этажа]] -> 0.00 | M195: 1.00 | N195: 1.00 | O195: 1.00 | Q195: 3.00
A196: Бежецкий район | B196: городское поселение город Бежецк | C196: г. Бежецк, пер. Советский, д. 26 | J196: =Таблица1[[#This Row],[S общ. Здания]]*Таблица1[[#This Row],[Высота этажа]] -> 0.00 | M196: 1.00 | N196: 1.00 | O196: 1.00 | Q196: 3.00
A197: Бежецкий район | B197: городское поселение город Бежецк | C197: г. Бежецк, пер. Советский, д. 9 | D197: 633.80 | E197: 686.20 | G197: 627.79 | H197: с | I197: 664.51 | J197: =Таблица1[[#This Row],[S общ. Здания]]*Таблица1[[#This Row],[Высота этажа]] -> 2,058.60 | M197: 1.00 | N197: 1.00 | P197: 2.00 | Q197: 3.00 | S197: 2020-11-24 | T197: 2019-10-21 | U197: 1
A198: Бежецкий район | B198: городское поселение город Бежецк | C198: г. Бежецк, пер. Чернышевского, д. 18/62 | J198: =Таблица1[[#This Row],[S общ. Здания]]*Таблица1[[#This Row],[Высота этажа]] -> 0.00 | M198: 1.00 | N198: 1.00 | O198: 1.00 | Q198: 3.00
A199: Бежецкий район | B199: городское поселение город Бежецк | C199: г. Бежецк, пер. Чернышевского, д. 29 | J199: =Таблица1[[#This Row],[S общ. Здания]]*Таблица1[[#This Row],[Высота этажа]] -> 0.00 | M199: 1.00 | N199: 1.00 | O199: 1.00 | Q199: 3.00
A200: Бежецкий район | B200: городское поселение город Бежецк | C200: г. Бежецк, пер. Чернышевского, д. 34 | J200: =Таблица1[[#This Row],[S общ. Здания]]*Таблица1[[#This Row],[Высота этажа]] -> 0.00 | M200: 1.00 | N200: 1.00 | O200: 1.00 | Q200: 3.00
... 4281 more rows
